[Event "*** Titled Tuesday Blitz"]
[Site "Chess.com"]
[Date "2020.05.26"]
[Round "8"]
[White "chiwii"]
[Black "CarlssonLudvig"]
[Result "0-1"]
[WhiteElo "2217"]
[BlackElo "2504"]
[TimeControl "180+1"]
[EndTime "11:41:04 PDT"]
[Termination "CarlssonLudvig won by resignation"]

1. e4 {[%clk 0:03:00.5]} 1... e5 {[%clk 0:02:59.4]} 2. Nf3 {[%clk 0:02:59.7]}
2... Nc6 {[%clk 0:02:59]} 3. Nc3 {[%clk 0:02:59.9]} 3... Nf6 {[%clk 0:02:58.5]}
4. Be2 {[%clk 0:02:58.1]} 4... d5 {[%clk 0:02:57.4]} 5. exd5 {[%clk 0:02:57.7]}
5... Nxd5 {[%clk 0:02:58.3]} 6. O-O {[%clk 0:02:56.7]} 6... Nxc3 {[%clk
0:02:56.7]} 7. bxc3 {[%clk 0:02:56.4]} 7... e4 {[%clk 0:02:53.9]} 8. Ne1 {[%clk
0:02:56.6]} 8... Bd6 {[%clk 0:02:34.5]} 9. d4 {[%clk 0:02:54.8]} 9... O-O {[%clk
0:02:08.3]} 10. f3 {[%clk 0:02:40.7]} 10... f5 {[%clk 0:02:07.7]} 11. fxe4
{[%clk 0:02:40.7]} 11... fxe4 {[%clk 0:02:08.2]} 12. Rxf8+ {[%clk 0:02:40.9]}
12... Qxf8 {[%clk 0:02:05.4]} 13. Bg4 {[%clk 0:02:40.6]} 13... Bf5 {[%clk
0:01:41.8]} 14. Be3 {[%clk 0:02:38.7]} 14... Rd8 {[%clk 0:01:28]} 15. g3 {[%clk
0:02:38.7]} 15... Qf7 {[%clk 0:01:06.6]} 16. Ng2 {[%clk 0:02:37.7]} 16... Rf8
{[%clk 0:00:35.8]} 17. Bxf5 {[%clk 0:02:36.8]} 17... Qxf5 {[%clk 0:00:36.6]} 18.
Qe2 {[%clk 0:02:37.1]} 18... Qd5 {[%clk 0:00:26.5]} 19. c4 {[%clk 0:02:18.7]}
19... Nxd4 {[%clk 0:00:26]} 20. cxd5 {[%clk 0:01:46.3]} 20... Nxe2+ {[%clk
0:00:25.6]} 21. Kh1 {[%clk 0:01:46.8]} 21... Nc3 {[%clk 0:00:24.1]} 22. Nf4
{[%clk 0:01:37]} 22... Bxf4 {[%clk 0:00:22.9]} 23. Bxf4 {[%clk 0:01:36.4]} 23...
Nxd5 {[%clk 0:00:22.8]} 24. Be5 {[%clk 0:01:34.1]} 24... b5 {[%clk 0:00:13.4]}
25. Re1 {[%clk 0:01:33.5]} 25... e3 {[%clk 0:00:13]} 26. Kg2 {[%clk 0:01:32.3]}
26... a6 {[%clk 0:00:12.6]} 27. Bf4 {[%clk 0:01:30]} 27... g6 {[%clk 0:00:07]}
28. Bxe3 {[%clk 0:01:29]} 28... Re8 {[%clk 0:00:07.5]} 29. Bd2 {[%clk
0:01:20.2]} 29... Rxe1 {[%clk 0:00:08.4]} 30. Bxe1 {[%clk 0:01:21.1]} 30... Kf7
{[%clk 0:00:09]} 31. Kf3 {[%clk 0:01:21.4]} 31... Ke6 {[%clk 0:00:09.5]} 32. Ke4
{[%clk 0:01:21.8]} 32... Nf6+ {[%clk 0:00:04.7]} 33. Kd4 {[%clk 0:01:21.9]}
33... Nd7 {[%clk 0:00:05]} 34. Ba5 {[%clk 0:01:20.9]} 34... c5+ {[%clk
0:00:05.1]} 35. Kd3 {[%clk 0:01:21]} 35... Kd5 {[%clk 0:00:05.2]} 36. Bd8 {[%clk
0:01:18.3]} 36... Ne5+ {[%clk 0:00:06.1]} 37. Ke2 {[%clk 0:01:16.4]} 37... Nc4
{[%clk 0:00:06.5]} 38. h4 {[%clk 0:01:14.4]} 38... Ke4 {[%clk 0:00:07.4]} 39.
Bc7 {[%clk 0:01:11.1]} 39... Na3 {[%clk 0:00:05.3]} 40. Kd2 {[%clk 0:01:10.1]}
40... Nb1+ {[%clk 0:00:05.6]} 41. Kc1 {[%clk 0:01:10.3]} 41... Nc3 {[%clk
0:00:06.5]} 42. Kd2 {[%clk 0:01:10.8]} 42... Nxa2 {[%clk 0:00:06.6]} 43. Bb6
{[%clk 0:01:10.1]} 43... c4 {[%clk 0:00:06.9]} 44. g4 {[%clk 0:01:08]} 44... h5
{[%clk 0:00:07.1]} 45. gxh5 {[%clk 0:01:06.4]} 45... gxh5 {[%clk 0:00:08]} 46.
Ba5 {[%clk 0:01:05.5]} 46... Kf3 {[%clk 0:00:08.2]} 47. c3 {[%clk 0:01:05.1]}
47... Kg4 {[%clk 0:00:08.5]} 48. Kc2 {[%clk 0:01:05]} 48... Kxh4 {[%clk
0:00:08.4]} 49. Kb2 {[%clk 0:01:05.3]} 49... Nxc3 {[%clk 0:00:08.2]} 50. Kxc3
{[%clk 0:01:06]} 50... Kg3 {[%clk 0:00:08.2]} 51. Bc7+ {[%clk 0:01:05.2]} 51...
Kg4 {[%clk 0:00:08.2]} 52. Ba5 {[%clk 0:01:02.4]} 52... h4 {[%clk 0:00:09.1]}
53. Bc7 {[%clk 0:01:00]} 53... h3 {[%clk 0:00:08.9]} 54. Be5 {[%clk 0:00:59.8]}
54... Kf3 {[%clk 0:00:09.8]} 55. Kb4 {[%clk 0:00:59.3]} 55... Kg2 {[%clk
0:00:10.7]} 56. Ka5 {[%clk 0:00:59.4]} 56... h2 {[%clk 0:00:09.9]} 57. Kxa6
{[%clk 0:00:58.8]} 57... h1=Q {[%clk 0:00:09.4]} 58. Kxb5 {[%clk 0:00:59.3]}
58... c3 {[%clk 0:00:08.7]} 59. Kc4 {[%clk 0:01:00.2]} 59... Qf1+ {[%clk
0:00:07]} 60. Kxc3 {[%clk 0:00:59.5]} 60... Qa1+ {[%clk 0:00:07.6]} 61. Kd3
{[%clk 0:00:59.5]} 61... Qxe5 {[%clk 0:00:08.5]} 0-1

[Event "*** Titled Tuesday Blitz"]
[Site "Chess.com"]
[Date "2020.05.26"]
[Round "8"]
[White "bsnsun"]
[Black "AnthonyWirig"]
[Result "0-1"]
[WhiteElo "2481"]
[BlackElo "2684"]
[TimeControl "180+1"]
[EndTime "11:41:05 PDT"]
[Termination "AnthonyWirig won by resignation"]

1. Nf3 {[%clk 0:03:00.9]} 1... c5 {[%clk 0:02:58.4]} 2. g3 {[%clk 0:03:00.3]}
2... g6 {[%clk 0:02:58.4]} 3. c4 {[%clk 0:03:00.3]} 3... Bg7 {[%clk 0:02:59.1]}
4. Nc3 {[%clk 0:02:59.8]} 4... Nc6 {[%clk 0:03:00]} 5. Bg2 {[%clk 0:03:00]} 5...
d6 {[%clk 0:03:00.6]} 6. a3 {[%clk 0:02:59.5]} 6... Bf5 {[%clk 0:03:01.1]} 7.
O-O {[%clk 0:02:46.4]} 7... Qd7 {[%clk 0:03:01.2]} 8. Re1 {[%clk 0:02:46.1]}
8... Bh3 {[%clk 0:03:00.1]} 9. Bh1 {[%clk 0:02:45]} 9... h5 {[%clk 0:03:00.1]}
10. d3 {[%clk 0:02:42]} 10... h4 {[%clk 0:03:00.2]} 11. Nd5 {[%clk 0:02:38.2]}
11... hxg3 {[%clk 0:03:00.1]} 12. hxg3 {[%clk 0:02:37.6]} 12... Bg4 {[%clk
0:02:54.6]} 13. Bg5 {[%clk 0:02:35.7]} 13... Rc8 {[%clk 0:02:51.3]} 14. Qd2
{[%clk 0:02:31.4]} 14... f6 {[%clk 0:02:46.5]} 15. Be3 {[%clk 0:02:27]} 15... e6
{[%clk 0:02:36.8]} 16. Nf4 {[%clk 0:02:25.6]} 16... g5 {[%clk 0:02:35.8]} 17.
Ng2 {[%clk 0:02:14.3]} 17... Qf7 {[%clk 0:02:32.1]} 18. Bxg5 {[%clk 0:01:37.1]}
18... fxg5 {[%clk 0:02:31.3]} 19. Qxg5 {[%clk 0:01:36.6]} 19... Nf6 {[%clk
0:02:05.3]} 20. Qf4 {[%clk 0:01:29.7]} 20... Kd7 {[%clk 0:01:50.5]} 21. Ngh4
{[%clk 0:01:24.5]} 21... Bh6 {[%clk 0:01:39.3]} 22. Ng5 {[%clk 0:01:24.5]} 22...
Qg7 {[%clk 0:01:30.2]} 23. Nhf3 {[%clk 0:01:00.2]} 23... Bxf3 {[%clk 0:01:24.8]}
24. Qxf3 {[%clk 0:00:57.8]} 24... Bxg5 {[%clk 0:01:24.5]} 25. Rad1 {[%clk
0:00:56.5]} 25... Rc7 {[%clk 0:01:08.2]} 26. b4 {[%clk 0:00:55.5]} 26... Nd4
{[%clk 0:00:59.2]} 27. Qg2 {[%clk 0:00:54.5]} 27... Ng4 {[%clk 0:00:58.2]} 28.
bxc5 {[%clk 0:00:49]} 28... Rh2 {[%clk 0:00:52.7]} 29. Qe4 {[%clk 0:00:36.9]}
29... Qh7 {[%clk 0:00:30.1]} 30. Qxh7+ {[%clk 0:00:35.7]} 30... Rxh7 {[%clk
0:00:29.2]} 31. cxd6 {[%clk 0:00:35.4]} 31... Kxd6 {[%clk 0:00:29.4]} 32. e3
{[%clk 0:00:35.7]} 32... Rxh1+ {[%clk 0:00:28.3]} 33. Kxh1 {[%clk 0:00:34.8]}
33... Nxf2+ {[%clk 0:00:28.8]} 34. Kg2 {[%clk 0:00:34.3]} 34... Nxd1 {[%clk
0:00:29.7]} 35. exd4 {[%clk 0:00:34.5]} 35... Nb2 {[%clk 0:00:27.4]} 36. c5+
{[%clk 0:00:30.9]} 36... Ke7 {[%clk 0:00:26]} 37. d5 {[%clk 0:00:29.9]} 37...
Rxc5 {[%clk 0:00:23.2]} 38. Rxe6+ {[%clk 0:00:29.8]} 38... Kd7 {[%clk
0:00:22.5]} 39. Re5 {[%clk 0:00:29.1]} 39... Be7 {[%clk 0:00:22.1]} 40. Kf3
{[%clk 0:00:26.3]} 40... Nxd3 {[%clk 0:00:22.1]} 41. Rf5 {[%clk 0:00:26.2]}
41... Rc3 {[%clk 0:00:21.1]} 42. Ke4 {[%clk 0:00:23.5]} 42... Rxa3 {[%clk
0:00:20.4]} 43. g4 {[%clk 0:00:23.5]} 43... Nc5+ {[%clk 0:00:20.2]} 44. Ke5
{[%clk 0:00:20.9]} 44... Ra4 {[%clk 0:00:20.6]} 45. d6 {[%clk 0:00:19.6]} 45...
Bxd6+ {[%clk 0:00:20.4]} 46. Kd5 {[%clk 0:00:19.4]} 46... Be7 {[%clk 0:00:19.9]}
47. g5 {[%clk 0:00:19.3]} 47... Rg4 {[%clk 0:00:19.4]} 0-1

[Event "*** Titled Tuesday Blitz"]
[Site "Chess.com"]
[Date "2020.05.26"]
[Round "8"]
[White "Lubov_Gordyk"]
[Black "emiliocordova"]
[Result "0-1"]
[WhiteElo "2618"]
[BlackElo "2732"]
[TimeControl "180+1"]
[EndTime "11:41:06 PDT"]
[Termination "emiliocordova won by resignation"]

1. e4 {[%clk 0:03:00.9]} 1... c5 {[%clk 0:02:59.3]} 2. g3 {[%clk 0:03:00.5]}
2... d6 {[%clk 0:02:58.9]} 3. Bg2 {[%clk 0:02:59.8]} 3... Nc6 {[%clk 0:02:59.5]}
4. Ne2 {[%clk 0:02:58.1]} 4... g6 {[%clk 0:02:59.9]} 5. c3 {[%clk 0:02:56.4]}
5... Bg7 {[%clk 0:03:00.8]} 6. d4 {[%clk 0:02:50.6]} 6... cxd4 {[%clk
0:03:00.4]} 7. cxd4 {[%clk 0:02:50.4]} 7... Nf6 {[%clk 0:03:01.1]} 8. Nbc3
{[%clk 0:02:49.2]} 8... O-O {[%clk 0:03:01]} 9. O-O {[%clk 0:02:48]} 9... Bd7
{[%clk 0:02:57.9]} 10. f3 {[%clk 0:02:43.2]} 10... Rc8 {[%clk 0:02:56]} 11. Be3
{[%clk 0:02:40.7]} 11... Na5 {[%clk 0:02:54.9]} 12. b3 {[%clk 0:02:40.1]} 12...
b5 {[%clk 0:02:54.7]} 13. Qd2 {[%clk 0:02:34.1]} 13... Nb7 {[%clk 0:02:24.4]}
14. Rfc1 {[%clk 0:02:30.6]} 14... b4 {[%clk 0:02:21.4]} 15. Nd1 {[%clk
0:02:25.8]} 15... a5 {[%clk 0:02:21.3]} 16. Rxc8 {[%clk 0:02:20.1]} 16... Qxc8
{[%clk 0:02:20.9]} 17. Rc1 {[%clk 0:02:19.3]} 17... Qb8 {[%clk 0:02:21.1]} 18.
h3 {[%clk 0:02:09.9]} 18... Rc8 {[%clk 0:02:20.3]} 19. f4 {[%clk 0:02:04.6]}
19... Rxc1 {[%clk 0:02:16.4]} 20. Nxc1 {[%clk 0:02:01.1]} 20... Ne8 {[%clk
0:02:17.3]} 21. e5 {[%clk 0:01:50.2]} 21... Nc7 {[%clk 0:02:15.7]} 22. Nd3
{[%clk 0:01:47.2]} 22... Nb5 {[%clk 0:02:09.1]} 23. N3b2 {[%clk 0:01:39.2]}
23... e6 {[%clk 0:01:56.5]} 24. Nc4 {[%clk 0:01:30.8]} 24... d5 {[%clk
0:01:54.6]} 25. Ncb2 {[%clk 0:01:30.7]} 25... Na3 {[%clk 0:01:52.1]} 26. Nd3
{[%clk 0:01:27.5]} 26... Bf8 {[%clk 0:01:51]} 27. g4 {[%clk 0:01:26.4]} 27...
Qc7 {[%clk 0:01:50.6]} 28. N1b2 {[%clk 0:01:23.1]} 28... Qc2 {[%clk 0:01:41.5]}
29. Qxc2 {[%clk 0:01:22.7]} 29... Nxc2 {[%clk 0:01:40.5]} 30. Bf2 {[%clk
0:01:22.6]} 30... Nd8 {[%clk 0:01:39.8]} 31. Bf3 {[%clk 0:01:16.6]} 31... Nc6
{[%clk 0:01:39.3]} 32. Nc5 {[%clk 0:01:12.9]} 32... Bc8 {[%clk 0:01:37.4]} 33.
Nba4 {[%clk 0:01:07]} 33... N2xd4 {[%clk 0:01:37.1]} 34. Bd1 {[%clk 0:01:06.9]}
34... Bxc5 {[%clk 0:01:11.4]} 35. Nxc5 {[%clk 0:01:06]} 35... Nb5 {[%clk
0:01:12]} 36. Be1 {[%clk 0:00:51.9]} 36... g5 {[%clk 0:01:00.1]} 37. fxg5 {[%clk
0:00:50.4]} 37... Nxe5 {[%clk 0:01:00.3]} 38. Kf2 {[%clk 0:00:48]} 38... Nd7
{[%clk 0:00:53.9]} 39. Na4 {[%clk 0:00:41.6]} 39... d4 {[%clk 0:00:50.8]} 40.
Be2 {[%clk 0:00:39.7]} 40... Nc3 {[%clk 0:00:50.5]} 41. Nxc3 {[%clk 0:00:34.1]}
41... bxc3 {[%clk 0:00:45.5]} 42. Bd3 {[%clk 0:00:33.2]} 42... Nc5 {[%clk
0:00:44.6]} 43. Ke2 {[%clk 0:00:32.6]} 43... Nxd3 {[%clk 0:00:38.7]} 44. Kxd3
{[%clk 0:00:32.4]} 44... e5 {[%clk 0:00:39.2]} 45. Bg3 {[%clk 0:00:31.2]} 45...
Ba6+ {[%clk 0:00:27.8]} 46. Kc2 {[%clk 0:00:30.8]} 46... e4 {[%clk 0:00:25.8]}
47. Be5 {[%clk 0:00:27.3]} 47... d3+ {[%clk 0:00:25.3]} 48. Kxc3 {[%clk
0:00:25.2]} 48... e3 {[%clk 0:00:25.9]} 49. Bf4 {[%clk 0:00:17.3]} 49... d2
{[%clk 0:00:25.6]} 50. Kc2 {[%clk 0:00:17.1]} 50... Be2 {[%clk 0:00:25.1]} 0-1

[Event "*** Titled Tuesday Blitz"]
[Site "Chess.com"]
[Date "2020.05.26"]
[Round "8"]
[White "rasmussvane"]
[Black "korbul"]
[Result "1-0"]
[WhiteElo "2863"]
[BlackElo "2611"]
[TimeControl "180+1"]
[EndTime "11:41:07 PDT"]
[Termination "rasmussvane won by resignation"]

1. Nf3 {[%clk 0:03:00.9]} 1... d5 {[%clk 0:02:59.5]} 2. g3 {[%clk 0:03:01.3]}
2... e6 {[%clk 0:02:59.7]} 3. Bg2 {[%clk 0:03:01.8]} 3... Nf6 {[%clk 0:03:00.5]}
4. O-O {[%clk 0:03:02.4]} 4... Be7 {[%clk 0:03:01]} 5. c4 {[%clk 0:03:03.1]}
5... O-O {[%clk 0:03:00.5]} 6. b3 {[%clk 0:03:03.6]} 6... c6 {[%clk 0:03:00.1]}
7. Bb2 {[%clk 0:03:03.5]} 7... Nbd7 {[%clk 0:03:00]} 8. Qc2 {[%clk 0:02:55.5]}
8... a5 {[%clk 0:02:58.6]} 9. Nc3 {[%clk 0:02:55]} 9... b6 {[%clk 0:02:58]} 10.
Rfd1 {[%clk 0:02:53.8]} 10... Ba6 {[%clk 0:02:56.3]} 11. d4 {[%clk 0:02:30.4]}
11... Qb8 {[%clk 0:02:55.2]} 12. Ne5 {[%clk 0:02:10.8]} 12... Nxe5 {[%clk
0:02:51.4]} 13. dxe5 {[%clk 0:02:11.7]} 13... Nd7 {[%clk 0:02:47.5]} 14. cxd5
{[%clk 0:02:11.1]} 14... cxd5 {[%clk 0:02:45.2]} 15. e4 {[%clk 0:02:11.4]} 15...
d4 {[%clk 0:02:37.2]} 16. Rxd4 {[%clk 0:02:11.5]} 16... Nxe5 {[%clk 0:02:37.4]}
17. Rad1 {[%clk 0:02:11.5]} 17... Bc5 {[%clk 0:02:15.2]} 18. R4d2 {[%clk
0:02:11.4]} 18... Rc8 {[%clk 0:02:11.7]} 19. h3 {[%clk 0:02:08.2]} 19... b5
{[%clk 0:02:06.4]} 20. Qb1 {[%clk 0:01:59.8]} 20... Bb4 {[%clk 0:01:47.8]} 21.
Rc2 {[%clk 0:01:51.5]} 21... a4 {[%clk 0:01:29.1]} 22. bxa4 {[%clk 0:01:44.7]}
22... bxa4 {[%clk 0:01:28]} 23. Nxa4 {[%clk 0:01:33.3]} 23... Bd3 {[%clk
0:01:23.6]} 24. Rxc8+ {[%clk 0:00:48]} 24... Qxc8 {[%clk 0:01:24.5]} 25. Qa1
{[%clk 0:00:44.9]} 25... Bc2 {[%clk 0:01:10.2]} 26. Nb6 {[%clk 0:00:42.4]} 26...
Qa6 {[%clk 0:01:02.3]} 27. Nxa8 {[%clk 0:00:41.6]} 27... Bxd1 {[%clk 0:00:56]}
28. Bxe5 {[%clk 0:00:30.7]} 28... Qe2 {[%clk 0:00:47.2]} 29. Qd4 {[%clk
0:00:22.3]} 29... Qe1+ {[%clk 0:00:36.7]} 30. Kh2 {[%clk 0:00:20.6]} 30... f6
{[%clk 0:00:27]} 31. Bd6 {[%clk 0:00:16.1]} 31... Bc3 {[%clk 0:00:25]} 32. Qe3
{[%clk 0:00:15.9]} 32... Qxe3 {[%clk 0:00:21.3]} 33. fxe3 {[%clk 0:00:16]} 33...
e5 {[%clk 0:00:21]} 34. Nc7 {[%clk 0:00:15.7]} 34... Be2 {[%clk 0:00:20.6]} 35.
Kg1 {[%clk 0:00:15.2]} 35... Bc4 {[%clk 0:00:20.4]} 36. a3 {[%clk 0:00:15]}
36... Kf7 {[%clk 0:00:19.3]} 37. Kf2 {[%clk 0:00:15.4]} 37... Ba5 {[%clk
0:00:17.4]} 38. Bf1 {[%clk 0:00:15]} 38... Ba2 {[%clk 0:00:16.6]} 39. Nd5 {[%clk
0:00:14]} 39... Ke6 {[%clk 0:00:15.9]} 40. Bf8 {[%clk 0:00:14.2]} 40... g6
{[%clk 0:00:15.2]} 41. Nb4 {[%clk 0:00:13.2]} 41... Bb3 {[%clk 0:00:14.5]} 42.
Nd3 {[%clk 0:00:13.1]} 42... Kf7 {[%clk 0:00:11.9]} 43. Bb4 {[%clk 0:00:13]}
43... Bc2 {[%clk 0:00:11.8]} 44. Bxa5 {[%clk 0:00:12.7]} 1-0

[Event "*** Titled Tuesday Blitz"]
[Site "Chess.com"]
[Date "2020.05.26"]
[Round "8"]
[White "bilelou"]
[Black "Alexander_Donchenko"]
[Result "1-0"]
[WhiteElo "2534"]
[BlackElo "2691"]
[TimeControl "180+1"]
[EndTime "11:41:07 PDT"]
[Termination "bilelou won on time"]

1. e4 {[%clk 0:02:49.5]} 1... c5 {[%clk 0:02:59.9]} 2. Nf3 {[%clk 0:02:49]} 2...
d6 {[%clk 0:03:00.1]} 3. d4 {[%clk 0:02:48.9]} 3... cxd4 {[%clk 0:03:00.4]} 4.
Nxd4 {[%clk 0:02:49.8]} 4... Nf6 {[%clk 0:03:00.8]} 5. Nc3 {[%clk 0:02:50]} 5...
a6 {[%clk 0:03:01.4]} 6. h4 {[%clk 0:02:50.2]} 6... e5 {[%clk 0:03:00.5]} 7. Nb3
{[%clk 0:02:49.8]} 7... Be6 {[%clk 0:02:58.4]} 8. f4 {[%clk 0:02:49]} 8... exf4
{[%clk 0:02:48.7]} 9. Bxf4 {[%clk 0:02:49.9]} 9... Nc6 {[%clk 0:02:49]} 10. Qd2
{[%clk 0:02:47.7]} 10... Be7 {[%clk 0:02:46.7]} 11. O-O-O {[%clk 0:02:47.7]}
11... Ne5 {[%clk 0:02:46.8]} 12. Nd4 {[%clk 0:02:44.9]} 12... O-O {[%clk
0:02:42.9]} 13. g3 {[%clk 0:02:41]} 13... b5 {[%clk 0:02:12.4]} 14. Nxe6 {[%clk
0:02:33.6]} 14... fxe6 {[%clk 0:02:12.4]} 15. Bh3 {[%clk 0:02:34]} 15... Kf7
{[%clk 0:02:05.2]} 16. Qe2 {[%clk 0:02:18]} 16... Qa5 {[%clk 0:01:55.5]} 17. g4
{[%clk 0:01:17.9]} 17... b4 {[%clk 0:01:50.7]} 18. Nb1 {[%clk 0:01:17.9]} 18...
g6 {[%clk 0:01:26]} 19. Bh6 {[%clk 0:01:07.9]} 19... Rfc8 {[%clk 0:00:40.9]} 20.
g5 {[%clk 0:00:53.3]} 20... Qxa2 {[%clk 0:00:40.1]} 21. gxf6 {[%clk 0:00:42.8]}
21... Nc4 {[%clk 0:00:39.3]} 22. c3 {[%clk 0:00:22.7]} 22... bxc3 {[%clk
0:00:18.4]} 23. Nxc3 {[%clk 0:00:06.9]} 23... Qa1+ {[%clk 0:00:13.9]} 24. Kc2
{[%clk 0:00:07.4]} 24... Qxb2+ {[%clk 0:00:13.7]} 25. Kd3 {[%clk 0:00:07.9]}
25... Ne5+ {[%clk 0:00:14.1]} 26. Ke3 {[%clk 0:00:08]} 26... Rxc3+ {[%clk
0:00:14]} 27. Kf2 {[%clk 0:00:07.4]} 27... Rc2 {[%clk 0:00:09.9]} 28. Rd2 {[%clk
0:00:07.2]} 28... Rxd2 {[%clk 0:00:09.9]} 29. Bxd2 {[%clk 0:00:07]} 29... Bxf6
{[%clk 0:00:08.4]} 30. Rc1 {[%clk 0:00:07.4]} 30... Ra7 {[%clk 0:00:06.8]} 31.
h5 {[%clk 0:00:06.8]} 31... a5 {[%clk 0:00:04]} 32. hxg6+ {[%clk 0:00:06.5]}
32... hxg6 {[%clk 0:00:04.9]} 33. Kg2 {[%clk 0:00:06.1]} 33... a4 {[%clk
0:00:04.5]} 34. Rf1 {[%clk 0:00:05.9]} 34... Nd7 {[%clk 0:00:02.3]} 35. Qf2
{[%clk 0:00:05.8]} 35... Kg7 {[%clk 0:00:02.3]} 36. Qxa7 {[%clk 0:00:05.3]}
36... Qxd2+ {[%clk 0:00:02.8]} 37. Rf2 {[%clk 0:00:05.5]} 37... Qg5+ {[%clk
0:00:01.7]} 38. Kh1 {[%clk 0:00:05.8]} 1-0

[Event "*** Titled Tuesday Blitz"]
[Site "Chess.com"]
[Date "2020.05.26"]
[Round "8"]
[White "heartofatiger"]
[Black "Kobalia"]
[Result "0-1"]
[WhiteElo "2498"]
[BlackElo "2781"]
[TimeControl "180+1"]
[EndTime "11:41:07 PDT"]
[Termination "Kobalia won by resignation"]

1. Nf3 {[%clk 0:03:00.9]} 1... Nf6 {[%clk 0:02:59.4]} 2. g3 {[%clk 0:03:01.3]}
2... d5 {[%clk 0:02:57.3]} 3. Bg2 {[%clk 0:03:01.2]} 3... c6 {[%clk 0:02:57.9]}
4. O-O {[%clk 0:03:01]} 4... Bg4 {[%clk 0:02:57.4]} 5. h3 {[%clk 0:03:00.1]}
5... Bh5 {[%clk 0:02:57]} 6. d3 {[%clk 0:03:00.4]} 6... Nbd7 {[%clk 0:02:56.4]}
7. Nbd2 {[%clk 0:03:00.3]} 7... e5 {[%clk 0:02:56]} 8. e4 {[%clk 0:03:00.2]}
8... Bc5 {[%clk 0:02:55.2]} 9. Qe1 {[%clk 0:02:55.2]} 9... dxe4 {[%clk
0:02:54.7]} 10. dxe4 {[%clk 0:02:54.6]} 10... O-O {[%clk 0:02:53.9]} 11. Nh4
{[%clk 0:02:53.4]} 11... a5 {[%clk 0:02:51.6]} 12. Kh1 {[%clk 0:02:50.4]} 12...
a4 {[%clk 0:02:50.3]} 13. a3 {[%clk 0:02:49.3]} 13... Re8 {[%clk 0:02:45.3]} 14.
f4 {[%clk 0:02:40.8]} 14... exf4 {[%clk 0:02:16.2]} 15. gxf4 {[%clk 0:02:40.5]}
15... Nd5 {[%clk 0:02:15.2]} 16. Ndf3 {[%clk 0:01:39.1]} 16... Qb6 {[%clk
0:02:13.3]} 17. Nf5 {[%clk 0:01:30.6]} 17... Bg6 {[%clk 0:02:08.2]} 18. N3h4
{[%clk 0:01:30.5]} 18... N7f6 {[%clk 0:01:47.9]} 19. e5 {[%clk 0:01:27.6]} 19...
Nh5 {[%clk 0:01:43]} 20. c4 {[%clk 0:01:19.9]} 20... Nc7 {[%clk 0:01:16]} 21.
Ng3 {[%clk 0:01:12.3]} 21... Nxg3+ {[%clk 0:01:09.5]} 22. Qxg3 {[%clk
0:01:11.9]} 22... Qb3 {[%clk 0:01:04.1]} 23. Qxb3 {[%clk 0:00:48]} 23... axb3
{[%clk 0:01:03.2]} 24. Nxg6 {[%clk 0:00:48.7]} 24... hxg6 {[%clk 0:01:01.9]} 25.
Rf3 {[%clk 0:00:49.2]} 25... Red8 {[%clk 0:00:56.3]} 26. Be3 {[%clk 0:00:44.5]}
26... Ne6 {[%clk 0:00:54.3]} 27. Raf1 {[%clk 0:00:35.1]} 27... Rd3 {[%clk
0:00:49.8]} 28. Bc1 {[%clk 0:00:33.9]} 28... Rad8 {[%clk 0:00:48.2]} 29. f5
{[%clk 0:00:33.4]} 29... Rxf3 {[%clk 0:00:46.7]} 30. Bxf3 {[%clk 0:00:27.4]}
30... gxf5 {[%clk 0:00:45.4]} 31. Bd1 {[%clk 0:00:26.6]} 31... Nd4 {[%clk
0:00:42.4]} 32. Be3 {[%clk 0:00:26.7]} 32... g6 {[%clk 0:00:41.1]} 33. Kg2
{[%clk 0:00:22]} 33... Ne6 {[%clk 0:00:40.8]} 34. Bh6 {[%clk 0:00:18.2]} 34...
Rd3 {[%clk 0:00:37.5]} 35. Be2 {[%clk 0:00:09.3]} 35... Rd4 {[%clk 0:00:37.4]}
36. Rf3 {[%clk 0:00:08.2]} 36... Re4 {[%clk 0:00:35.9]} 37. Kf1 {[%clk
0:00:07.4]} 37... Rxe2 {[%clk 0:00:33.5]} 38. Kxe2 {[%clk 0:00:07.2]} 38... Nd4+
{[%clk 0:00:33.8]} 39. Kf2 {[%clk 0:00:06.6]} 39... Nxf3+ {[%clk 0:00:33.9]} 40.
Kxf3 {[%clk 0:00:07.3]} 40... Bd4 {[%clk 0:00:34.4]} 41. Bc1 {[%clk 0:00:06.7]}
41... Bxe5 {[%clk 0:00:34.6]} 42. Ke2 {[%clk 0:00:06.6]} 42... f4 {[%clk
0:00:34.2]} 43. c5 {[%clk 0:00:07.2]} 43... g5 {[%clk 0:00:33.1]} 44. Kd3 {[%clk
0:00:07.7]} 44... f5 {[%clk 0:00:31.2]} 45. Kc4 {[%clk 0:00:07.8]} 45... g4
{[%clk 0:00:31.3]} 46. hxg4 {[%clk 0:00:07.6]} 46... fxg4 {[%clk 0:00:31.6]} 0-1